bitfinex/quotes_ETHUSD_20250622
["timestamp","ask_amount","ask_price","bid_price","bid_amount"]
[1750624877931,1.5057,2165.9,2165.2,2.42757926]
[1750624878139,1.5057,2165.9,2165.3,0.04617628]
[1750624878303,3.228,2166.9,2165.3,0.04617628]
[1750624878304,1.5057,2166.3,2165.6,0.0567]
[1750624878824,1.5057,2166.3,2165.9,4.6168613]
[1750624879006,1.5057,2166.3,2166.0,0.46168613]
[1750624879206,1.5057,2166.3,2166.1,0.0567]
[1750624879410,1.5057,2166.3,2166.0,0.46168613]
[1750624879708,8.479,2167.5,2165.1,0.0567]
[1750624879709,1.5634,2166.1,2165.1,0.0567]
[1750624879897,0.0461139,2166.0,2164.8,10.0]
[1750624880095,0.0577,2165.7,2164.8,2.73914495]
[1750624880324,0.0461139,2165.6,2164.9,4.66516907]
[1750624880512,0.0461139,2165.8,2164.9,4.61898127]
[1750624880725,0.0461139,2165.8,2164.7,0.51135682]
[1750624881030,2.1642,2165.7,2164.7,0.45465682]
[1750624881216,1.6142,2165.7,2164.8,0.04618909]
[1750624881530,0.0461139,2165.6,2164.8,14.63248578]
[1750624881736,1.6142,2165.7,2165.4,4.61805542]
[1750624881894,1.6142,2166.1,2165.5,10.10287329]
[1750624882094,1.6142,2166.1,2165.5,10.0567]
[1750624882405,1.6142,2166.1,2165.5,0.0567]
[1750624882610,0.0461139,2166.0,2165.5,0.52416352]
[1750624882794,1.6142,2166.1,2165.5,0.52416352]
[1750624882998,1.6142,2166.1,2165.6,0.04617232]
[1750624883398,1.6142,2166.1,2165.5,0.57033453]
[1750624883610,1.6142,2166.1,2165.5,0.51363453]
[1750624883809,0.0461139,2166.0,2165.2,10.0]
[1750624884011,0.1038139,2166.0,2164.8,14.64299669]
[1750624884233,0.0461139,2166.0,2165.2,4.61851099]
[1750624884410,0.0461139,2166.0,2165.1,4.67533845]
[1750624884611,0.1038139,2166.0,2164.9,10.0]
[1750624884801,2.1211,2165.9,2164.8,0.93420405]
[1750624885001,1.6288,2165.7,2164.9,0.04618198]
[1750624885206,1.5711,2165.7,2164.8,18.27142103]
[1750624885401,1.5711,2165.7,2164.9,4.61896805]
[1750624885602,0.0461139,2165.6,2164.7,0.51505547]
[1750624885814,0.0461139,2165.6,2164.7,12.21705547]
[1750624886019,0.0461139,2165.6,2164.7,16.83646536]
[1750624886240,1.5711,2165.7,2164.8,0.04618246]
[1750624886534,0.0461139,2166.5,2165.7,0.0567]
[1750624886701,1.6257,2166.6,2165.8,0.0461603]
[1750624886906,1.6257,2166.6,2165.7,4.61729474]
[1750624887133,1.6257,2166.6,2165.8,0.04617211]
[1750624887134,0.0461139,2166.5,2165.8,0.04617211]
[1750624887303,0.0461139,2166.5,2165.3,13.2837]
[1750624887503,1.5407,2166.4,2165.4,2.85405926]
[1750624887699,0.0461139,2166.3,2165.4,2.85405926]
[1750624888138,1.5984,2166.2,2165.1,4.61866481]
[1750624888440,0.0461139,2166.1,2165.0,10.0]
[1750624888932,0.0461139,2166.1,2165.1,0.04617784]
[1750624889150,0.0461139,2166.1,2165.2,4.61850794]
[1750624889518,0.0461139,2166.1,2165.5,4.61772591]
[1750624889923,0.0461139,2166.1,2165.4,10.0]
[1750624890226,0.0461139,2166.1,2165.4,23.09204906]
[1750624890550,0.0461139,2166.1,2165.3,0.0567]
[1750624890755,0.0461139,2166.1,2165.3,4.67497384]
[1750624890938,0.0461139,2166.1,2165.1,11.46189305]
[1750624891142,0.0461139,2166.1,2165.2,4.66454267]
[1750624891337,1.5551,2166.0,2165.1,1.46189305]
[1750624891551,0.0461139,2165.9,2165.2,0.0461776]
[1750624891751,1.5551,2166.7,2165.9,4.61701088]
[1750624891957,0.0461139,2166.6,2165.7,8.473]
[1750624892259,1.5551,2166.7,2166.1,4.61651363]
[1750624892428,1.5551,2166.7,2166.2,0.04615857]
[1750624892618,0.0461139,2166.6,2166.1,4.61651363]
[1750624892955,1.5551,2166.7,2166.2,0.04615856]
[1750624893155,1.5551,2166.7,2166.3,4.67269811]
[1750624893322,1.5551,2166.7,2166.3,5.60161084]
[1750624893522,1.5551,2166.7,2166.4,4.61588486]
[1750624893721,1.5551,2166.7,2166.4,4.66203988]
[1750624893922,1.5551,2166.7,2166.3,5.60172553]
[1750624894226,1.5551,2166.7,2166.4,0.04615407]
[1750624894443,1.5551,2166.7,2166.3,0.46581294]
[1750624894722,1.5551,2166.7,2166.3,4.61602496]
[1750624894919,1.5551,2166.7,2165.8,4.6170747]
[1750624894920,0.0461139,2166.6,2165.8,4.6170747]
[1750624895158,0.0461139,2166.6,2165.7,0.0567]
[1750624895321,1.5551,2166.7,2165.8,4.6172315]
[1750624895518,1.5551,2166.7,2165.8,10.0]
[1750624895719,1.5551,2166.7,2165.9,4.61701832]
[1750624895949,1.5551,2166.7,2166.4,4.61595273]
[1750624896120,0.0461139,2166.9,2166.4,0.46844805]
[1750624896327,1.5756,2167.1,2166.6,4.61538697]
[1750624896547,0.0461139,2167.0,2166.6,10.0]
[1750624896747,0.0461139,2167.0,2165.8,0.0567]
[1750624897055,0.0461139,2167.0,2166.5,10.0]
[1750624897959,0.0461139,2167.0,2166.4,14.61592833]
[1750624898155,0.0461139,2167.0,2166.5,4.6157383]
[1750624898458,0.0461139,2167.0,2166.5,4.61571683]
[1750624898655,1.5756,2167.1,2166.7,10.0567]
[1750624898860,1.4756,2167.1,2166.8,0.0567]
[1750624899030,1.4756,2167.1,2166.7,14.61529235]
[1750624899359,0.0461139,2167.0,2166.2,8.5257]
[1750624899540,0.0461139,2167.0,2166.2,4.67302004]
[1750624899746,0.0461139,2167.0,2166.2,0.0567]
[1750624899946,0.0461139,2167.0,2166.2,10.0567]
[1750624900378,0.0461139,2167.0,2166.3,0.04615418]
[1750624900537,0.0461139,2167.0,2166.4,10.0]
[1750624901152,0.0461139,2167.0,2166.3,1.85718542]
[1750624901371,0.0461139,2167.0,2166.5,10.0]
[1750624901524,1.4756,2167.1,2166.3,1.85718542]
[1750624901525,1.4217139,2167.1,2166.3,1.85718542]
[1750624901725,1.4217139,2167.1,2166.4,4.61592988]
[1750624902661,0.03014163,2374.8,2166.7,4.61514103]
[1750624902662,0.0577,2167.8,2166.7,4.61514103]
[1750624902958,0.0577,2167.8,2166.8,10.0]
[1750624903134,0.0577,2167.8,2166.8,14.61498293]
[1750624903457,0.0577,2167.8,2167.0,4.61458996]
[1750624903763,0.0577,2167.8,2167.1,4.61444851]
[1750624903959,0.0577,2167.8,2167.0,7.06083061]
[1750624904325,0.0577,2167.8,2167.0,7.01468994]
[1750624904527,1.6187,2167.7,2167.1,4.61440402]
[1750624904965,1.6187,2167.7,2167.0,7.01469484]
[1750624905263,1.6187,2167.7,2167.1,4.61431931]
[1750624905454,1.6187,2167.7,2167.0,5.08146984]
[1750624906029,1.6187,2167.7,2167.0,0.46688506]
[1750624906372,1.6187,2167.1,2166.2,4.61635029]
[1750624906542,1.6187,2167.1,2166.0,0.0572]
[1750624906730,1.6187,2167.1,2166.4,4.61591277]
[1750624906936,1.6187,2167.1,2166.4,4.61578204]
[1750624907134,1.6187,2167.1,2166.7,0.0572]
[1750624907331,1.6187,2167.1,2166.8,4.61507555]
[1750624907539,1.6187,2167.1,2166.8,0.0572]
[1750624907748,1.6187,2167.1,2166.7,4.61524162]
[1750624907982,0.0587,2167.7,2166.8,10.0572]
[1750624908144,1.6187,2168.0,2167.4,13.65209264]
[1750624908488,1.6187,2168.0,2167.6,0.0572]
[1750624908640,1.6187,2168.0,2167.7,4.67023505]
[1750624908837,1.6187,2168.0,2167.8,4.61294272]
[1750624909051,1.6187,2168.0,2167.9,4.61275889]
[1750624909256,1.6454,2168.5,2167.9,11.03518283]
[1750624909451,1.6454,2168.5,2167.9,15.64781103]
[1750624909661,1.6454,2168.5,2168.0,4.61248495]
[1750624909975,1.5454,2168.5,2168.1,0.0572]
[1750624910273,1.5454,2168.5,2167.9,0.97798283]
[1750624910605,0.0587,2168.3,2167.3,0.0572]
[1750624910740,0.55,2168.0,2167.3,0.4653495]
[1750624911079,0.0587,2167.9,2166.8,0.0572]
[1750624911375,3.2777,2167.9,2166.9,10.0]
[1750624911751,0.0587,2167.9,2167.0,0.04614157]
[1750624911937,0.0587,2167.9,2167.0,4.66075988]
[1750624912144,0.0587,2167.9,2167.0,0.04614157]
[1750624912358,0.0587,2167.9,2167.0,4.66081547]
[1750624912558,0.0587,2167.9,2167.0,2.03540706]
[1750624912766,0.55,2167.8,2167.0,0.45083766]
[1750624912969,1.6306,2169.1,2167.3,13.65209264]
[1750624913175,1.6306,2168.8,2167.4,0.04612901]
[1750624913484,0.0587,2168.5,2167.3,10.0]
[1750624913786,4.8496,2168.4,2167.3,14.61403589]
[1750624913986,4.8496,2168.4,2167.4,6.54237066]
[1750624914155,3.219,2168.3,2167.4,6.54237066]
[1750624914351,1.6306,2168.4,2167.5,0.04613128]
[1750624914554,3.219,2168.3,2167.5,4.61361014]
[1750624915083,3.219,2168.3,2167.5,10.0]
[1750624916679,0.55,2168.2,2167.5,10.0]
[1750624916881,0.55,2168.0,2167.3,1.386697]
[1750624917177,4.7715,2168.1,2167.4,0.10333638]
[1750624917381,1.5535,2168.1,2167.4,0.0572]
[1750624917538,1.5535,2168.1,2167.5,14.61348729]
[1750624917738,1.5535,2168.1,2167.5,10.0]
[1750624917944,0.6087,2168.0,2167.1,0.0572]
[1750624919278,0.6087,2168.0,2167.1,4.67163436]
[1750624919481,0.6087,2168.0,2167.1,0.0572]
[1750624919696,1.5535,2168.1,2167.1,0.10333721]
[1750624919898,1.5535,2168.1,2167.2,4.61410367]
[1750624919899,3.203,2167.9,2167.2,4.61410367]
[1750624920105,3.203,2167.9,2167.2,10.0]
[1750624920253,3.203,2167.9,2167.3,0.04613273]
[1750624920598,3.203,2167.9,2167.1,1.36365222]
[1750624920599,3.203,2167.9,2167.2,4.6142488]
[1750624921265,3.203,2167.9,2167.4,4.61375458]
[1750624921473,3.203,2167.9,2167.3,0.0572]
[1750624921779,1.5535,2168.1,2167.3,10.0572]
[1750624921947,1.5535,2168.1,2167.5,10.0]
[1750624922151,1.5535,2168.1,2167.6,0.10332762]
[1750624922360,1.5535,2168.1,2167.6,0.0572]
[1750624922682,1.5535,2168.1,2167.5,14.61355093]
[1750624922683,1.5535,2168.1,2167.5,10.0]
[1750624923181,0.0587,2167.9,2167.1,1.26365222]
[1750624923389,0.55,2167.8,2167.1,1.26365222]
[1750624923583,0.0587,2167.5,2166.5,11.38787398]
[1750624923794,1.5295,2167.7,2166.9,4.66102543]
[1750624924001,1.5295,2167.7,2167.4,10.0]
[1750624924200,1.5295,2168.1,2167.6,10.0]
[1750624924493,1.6106,2168.9,2168.0,11.38787398]
[1750624924655,3.203,2168.8,2167.9,21.38787398]
[1750624924850,11.38787398,2170.1,2167.9,21.38787398]
[1750624924851,1.6693,2169.4,2168.7,11.38787398]
[1750624925086,1.6106,2169.4,2168.7,11.38787398]
[1750624925655,1.6106,2169.4,2168.6,10.0]
[1750624926087,1.6106,2169.4,2168.7,1.89692434]
[1750624926290,1.6106,2169.4,2168.7,1.85082]
[1750624926803,1.6106,2169.4,2168.8,0.04610263]
[1750624927006,1.6106,2169.4,2168.6,10.46570698]
[1750624927705,1.6106,2169.4,2168.6,0.46570698]
[1750624927706,0.55,2169.3,2168.6,0.46570698]
[1750624928004,1.6103,2169.1,2168.3,10.0]
[1750624928173,1.67614334,2169.1,2168.3,10.0]
[1750624928386,1.67614334,2169.1,2168.1,23.70262686]
[1750624928387,0.55,2169.0,2168.1,1.386216]
[1750624928575,0.55,2169.0,2168.1,10.0]
[1750624928783,1.67614334,2169.1,2168.1,10.0]
[1750624928784,1.67614334,2169.1,2168.3,10.0]
[1750624928974,1.67614334,2169.1,2168.4,0.04611069]
[1750624929196,1.67614334,2169.1,2168.3,10.0]
[1750624929710,1.6103,2168.6,2166.9,1.5563]
[1750624929896,2.1603,2167.9,2166.9,0.46018302]
[1750624930099,2.1603,2167.5,2166.8,1.386991]
[1750624930300,1.6103,2167.2,2166.6,0.4675249]
[1750624930606,1.6103,2167.5,2167.0,10.0]
[1750624930804,1.6103,2168.0,2167.2,0.0572]
[1750624930978,0.55,2167.8,2167.1,2.35785269]
[1750624931312,1.5531,2167.7,2167.1,2.35785269]
[1750624931621,1.5531,2167.7,2166.7,10.0]
[1750624931622,0.55,2167.6,2166.7,10.0]
[1750624931913,1.4531,2167.7,2167.1,10.0]
[1750624932209,1.4531,2167.7,2167.3,0.0572]
[1750624932711,1.4531,2167.7,2167.1,10.0]
[1750624932877,1.4531,2167.7,2167.3,28.0]
[1750624933081,1.4531,2167.7,2167.3,10.0]
[1750624933278,1.4531,2167.7,2167.1,10.0]
[1750624934021,1.4531,2167.7,2167.2,0.04613689]
[1750624934384,1.4531,2167.7,2167.2,0.10563689]
[1750624934698,3.202,2168.0,2167.3,10.0]
[1750624934904,1.6655,2168.0,2167.3,9.85]
[1750624935419,1.6655,2168.0,2167.4,13.57852686]
[1750624936780,1.6655,2168.0,2167.5,10.0]
[1750624936978,1.6655,2168.0,2167.6,0.04612814]
[1750624937215,1.6655,2168.0,2167.3,23.05895321]
[1750624937419,1.6655,2168.0,2167.5,10.0]
[1750624938016,1.6655,2168.0,2167.5,9.9595]
[1750624938218,1.5155,2168.0,2167.5,9.9595]
[1750624939610,0.0578,2168.4,2167.6,0.10562517]
[1750624940385,0.0578,2168.4,2167.5,9.9]
[1750624940580,0.55,2168.3,2167.3,8.443]
[1750624940786,0.55,2168.3,2167.4,11.85025]
[1750624941215,1.6655,2168.2,2167.4,11.85025]
[1750624941383,1.6655,2168.2,2167.4,11.75025]
[1750624941792,1.5155,2168.2,2167.5,0.04612949]
[1750624942097,0.0578,2169.3,2168.0,13.63802686]
[1750624942419,14.286,2169.4,2168.4,13.57852686]
[1750624942725,14.286,2169.4,2168.2,0.0595]
[1750624942883,14.286,2169.4,2168.2,2.40610959]
[1750624943087,0.55,2169.2,2168.2,2.34660959]
[1750624943287,0.55,2169.2,2168.0,4.61249736]
[1750624943529,0.55,2169.0,2168.0,0.47140052]
[1750624943686,14.12852686,2168.6,2167.8,1.386287]
[1750624943885,14.12852686,2168.6,2166.7,0.0595]
[1750624943886,0.55,2168.0,2166.7,0.0595]
[1750624944086,0.6078,2167.8,2166.7,0.52698334]
[1750624944286,0.6078,2167.8,2166.8,0.04614187]
[1750624944585,0.0578,2167.8,2166.8,0.49680576]
[1750624944789,1.509,2167.7,2167.1,4.67393699]
[1750624945016,1.509,2167.7,2167.3,0.0595]
[1750624945291,1.509,2168.0,2167.6,4.67273453]
[1750624945621,1.509,2168.4,2167.7,0.0595]
[1750624945820,1.509,2168.4,2167.3,13.11237334]
[1750624946001,1.509,2168.4,2167.4,14.6136892]
[1750624946201,1.509,2168.4,2167.4,14.61378398]
[1750624946445,1.509,2168.4,2167.7,4.61314241]
[1750624946602,1.509,2168.4,2167.8,0.52081424]
[1750624946801,1.509,2168.4,2167.4,14.61378646]
[1750624946994,1.509,2168.4,2167.7,10.0]
[1750624947690,1.509,2168.4,2167.5,0.0595]
[1750624948024,4.711,2169.0,2168.0,14.67186305]
[1750624948325,4.711,2169.0,2168.4,4.6115081]
[1750624948531,4.711,2169.0,2168.5,0.92829097]
[1750624948726,4.711,2169.0,2168.5,16.92907169]
[1750624948925,1.509,2169.0,2168.6,0.0595]
[1750624949129,1.509,2169.0,2168.6,0.52628121]
[1750624949294,1.509,2169.0,2168.6,0.0595]
[1750624950545,1.509,2169.0,2168.2,10.0]
[1750624950700,1.509,2169.0,2168.6,0.45084617]
[1750624950898,1.509,2169.0,2168.0,21.44885394]
[1750624951409,0.6078,2168.9,2168.0,10.0595]
[1750624951612,1.509,2168.8,2168.1,0.04611794]
[1750624951899,1.509,2168.8,2168.1,1.90017973]
[1750624952331,1.509,2168.8,2168.1,2.36409725]
[1750624952544,1.509,2168.8,2168.1,6.93018145]
[1750624952718,11.083,2169.2,2168.3,1.5132]
[1750624952936,11.083,2169.2,2168.7,10.0]
[1750624953096,1.6332,2169.3,2168.7,11.4611223]
[1750624953607,1.6332,2169.3,2168.7,1.4611223]
[1750624954228,1.6332,2169.3,2168.3,8.433]
[1750624954440,4.8132,2169.3,2168.5,0.0595]
[1750624954638,4.8132,2169.3,2168.5,10.0595]
[1750624955733,1.6332,2169.3,2168.6,0.04610477]
[1750624956029,1.6332,2169.3,2168.5,10.0595]
[1750624956233,1.6332,2169.3,2168.5,13.50886367]
[1750624956658,1.6332,2169.3,2168.6,0.04610477]
[1750624956855,1.6332,2169.3,2168.5,13.50886367]
[1750624957060,1.6332,2169.3,2168.5,13.44936367]
[1750624957338,1.5509,2169.8,2169.3,4.60971027]
[1750624957505,1.5509,2169.8,2169.5,0.0595]
[1750624957944,1.5509,2169.8,2169.5,14.66881544]
[1750624958136,1.5509,2169.8,2169.6,0.10558689]
[1750624958438,1.5509,2170.2,2169.6,0.04608689]
[1750624958602,1.5509,2170.2,2169.3,18.4895]
[1750624958808,1.5509,2170.2,2169.3,0.0595]
[1750624959009,1.5509,2170.2,2169.4,4.60943409]
[1750624959203,1.5509,2170.2,2169.4,3.07143542]
[1750624959911,1.5509,2170.2,2169.4,0.45760318]
[1750624960111,1.5509,2170.2,2169.3,23.0961585]
[1750624960614,0.55,2169.8,2168.6,1.7125]
[1750624960937,4.7309,2169.7,2169.0,4.66990994]
[1750624961139,1.5509,2169.7,2169.2,4.60996246]
[1750624961327,1.5509,2169.7,2169.2,0.0595]
[1750624961535,1.5509,2169.7,2169.3,4.60965073]
[1750624961731,1.6479,2170.0,2169.5,4.60917204]
[1750624962031,1.6479,2170.0,2169.5,4.60933128]
[1750624962211,1.6479,2170.0,2169.6,0.0595]
[1750624962408,0.2856773,2170.5,2170.0,4.60825948]
[1750624962409,1.6479,2170.4,2170.0,4.60825948]
[1750624962612,0.2278773,2170.5,2170.0,4.60827063]
[1750624962808,0.2278773,2170.5,2170.3,4.66714675]
[1750624963008,0.2278773,2170.5,2170.4,14.71301435]
[1750624963211,0.2278773,2170.5,2170.4,13.559146]
[1750624963537,0.2278773,2170.5,2170.4,0.0595]
[1750624963928,0.2278773,2170.5,2170.4,10.0595]
[1750624964130,0.2278773,2170.5,2170.4,0.0595]
[1750624965876,0.2278773,2170.5,2169.9,8.42]
[1750624966083,1.6479,2170.4,2169.6,8.48]
[1750624966285,0.0614,2169.9,2169.6,1.385147]
[1750624966582,1.6479,2170.0,2169.2,20.38583174]
[1750624966736,1.6479,2170.0,2169.3,12.03858317]
[1750624967264,1.6479,2170.0,2169.3,10.0]
[1750624968168,1.6479,2170.0,2169.3,14.60976658]
[1750624968330,1.6479,2170.0,2169.5,11.38935394]
[1750624968532,1.533,2170.4,2169.7,10.06]
[1750624968846,1.533,2170.4,2169.9,10.0]
[1750624969025,1.533,2170.4,2169.7,10.06]
[1750624969229,1.533,2170.4,2169.8,16.91747378]
[1750624969430,1.533,2170.4,2169.9,4.60846927]
[1750624969666,1.533,2170.4,2169.8,25.335544]
[1750624970051,1.533,2170.4,2169.8,20.72691282]
[1750624970252,1.533,2170.4,2169.8,25.33560845]
[1750624970772,1.533,2170.4,2169.9,4.71458069]
[1750624970968,1.533,2170.4,2169.9,11.92656944]
[1750624971172,1.533,2170.4,2169.9,21.88049362]
[1750624971337,1.5944,2170.4,2169.8,18.418]
[1750624971534,1.5944,2170.4,2169.5,10.0]
[1750624971849,1.5944,2170.4,2169.5,18.416]
[1750624972053,1.5944,2170.4,2169.5,23.02532272]
[1750624972246,1.533,2170.4,2169.8,11.38935394]
[1750624972441,0.2278773,2170.5,2170.2,10.0]
[1750624972646,0.2278773,2170.5,2170.2,10.06]
[1750624973044,0.2278773,2170.5,2170.0,10.0]
[1750624973249,0.2278773,2170.5,2169.8,0.06]
[1750624973451,0.0614,2170.3,2169.4,0.06]
[1750624973856,0.0614,2170.3,2169.4,0.95421481]
[1750624974677,1.6576,2170.1,2169.3,0.46814811]
[1750624974863,1.6576,2170.1,2169.6,11.38935394]
[1750624975059,1.6576,2170.4,2169.7,10.0]
[1750624975260,1.6576,2170.4,2169.7,10.06]
[1750624975458,1.719,2170.4,2169.7,10.0]
[1750624975648,1.719,2170.4,2169.4,10.0]
[1750624975975,0.2278773,2170.5,2169.3,8.87468139]
[1750624975976,1.6576,2170.2,2169.3,8.87468139]
[1750624976266,1.6576,2170.0,2169.3,8.87468139]
[1750624976468,0.0614,2169.9,2169.3,8.87468139]
[1750624977383,1.6576,2170.0,2169.3,9.76814953]
[1750624977553,1.6576,2170.0,2169.4,4.60944523]
[1750624977749,1.6576,2170.0,2169.3,1.35614953]
[1750624978079,1.6576,2170.0,2169.6,10.06]
[1750624978242,1.6576,2170.0,2169.6,0.06]
[1750624978577,1.6576,2170.0,2169.4,10.0]
[1750624978977,1.6576,2170.0,2169.3,8.87268139]
[1750624979681,0.0614,2169.7,2169.3,0.46268139]
[1750624979976,1.656,2169.4,2168.3,0.06]
[1750624980147,1.656,2169.4,2168.3,2.93449429]
[1750624980347,1.656,2169.4,2168.4,26.00089271]
[1750624980542,1.656,2169.4,2168.7,11.38935394]
[1750624980543,1.5946,2169.4,2168.7,11.38935394]
[1750624980745,1.5946,2170.0,2169.3,11.38935394]
[1750624980964,1.5946,2170.0,2169.4,1.13893539]
[1750624981279,1.5946,2170.0,2169.5,4.71542336]
[1750624981504,1.5946,2170.0,2169.5,0.04608706]
[1750624981793,1.5946,2170.0,2169.4,1.13893539]
[1750624982088,1.5946,2170.0,2169.5,4.65542815]
[1750624982246,1.5946,2170.0,2169.7,4.60892778]
[1750624982445,1.5397,2170.4,2169.8,0.06]
[1750624982646,0.2278773,2170.5,2170.2,0.06]
[1750624982845,0.2278773,2170.5,2170.3,0.06]
[1750624983073,0.2278773,2170.5,2170.4,14.66744563]
[1750624983747,0.2278773,2170.5,2170.3,7.98178233]
[1750624983748,1.6219,2170.4,2169.3,1.5606]
[1750624984052,1.6219,2170.4,2169.5,4.60929023]
[1750624984369,1.6219,2170.4,2169.1,13.56767716]
[1750624984370,0.0614,2170.3,2169.1,13.01504378]
[1750624984550,0.0614,2170.3,2169.2,4.60985555]
[1750624984752,1.6219,2170.4,2169.6,10.0]
[1750624984979,1.6219,2170.4,2169.7,8.405]
[1750624985527,1.6219,2170.4,2169.8,0.06]
[1750624985782,1.6219,2170.4,2169.7,8.405]
[1750624986102,1.563,2170.2,2169.4,8.404]
[1750624986381,1.563,2170.2,2169.5,10.04608862]
[1750624986595,0.55,2170.1,2169.1,0.51138664]
[1750624986746,0.55,2169.7,2168.7,0.06]
[1750624986949,0.6114,2169.5,2168.6,0.04610719]
[1750624987151,1.5016,2169.4,2168.5,0.04610479]
[1750624987391,1.5016,2169.4,2168.4,4.67164969]
[1750624987598,1.5016,2169.4,2168.5,0.7546144]
[1750624987901,1.5016,2169.4,2168.7,10.06]
[1750624988100,1.5016,2169.4,2168.8,0.04609628]
[1750624988383,1.5016,2169.7,2169.4,0.06]
[1750624988582,1.5016,2169.7,2169.1,10.0]
[1750624988752,1.5016,2169.7,2169.3,10.0]
[1750624988953,1.563,2169.7,2169.1,8.402]
[1750624989170,1.5016,2169.7,2169.2,10.04609545]
[1750624989358,0.0614,2169.6,2168.6,8.461]
[1750624989559,0.0614,2169.6,2168.7,4.61105731]
[1750624989778,0.0614,2169.6,2168.8,1.30720573]
[1750624989980,1.5016,2169.7,2168.8,1.30720573]
[1750624990482,1.5016,2169.7,2168.9,10.04609844]
[1750624990784,1.5016,2169.7,2168.8,1.30720573]
[1750624990949,1.563,2169.7,2168.8,1.30720573]
[1750624991151,1.563,2169.7,2168.9,5.74122684]
[1750624991476,1.563,2169.7,2168.9,11.13072057]
[1750624991788,1.5016,2169.7,2169.0,4.67034684]
[1750624992082,1.5016,2169.7,2169.0,0.06]
[1750624992801,1.5016,2169.7,2169.0,0.04609376]
[1750624992802,1.563,2169.7,2169.0,0.04609376]
[1750624992980,1.563,2169.7,2168.9,11.13072057]
[1750624993192,1.563,2169.7,2169.0,1.70487527]
[1750624993675,1.563,2169.7,2169.1,0.04609844]
[1750624993869,1.5016,2169.7,2169.1,0.04609844]
[1750624994070,1.5016,2169.7,2169.0,1.70487527]
[1750624994326,1.5016,2169.7,2168.9,0.0569]
[1750624994586,0.0586,2169.3,2168.5,0.4688293]
[1750624994796,0.0586,2169.3,2168.4,10.0569]
[1750624994995,1.6027,2169.2,2168.4,0.45548109]
[1750624995204,1.6027,2169.2,2168.5,4.61139666]
[1750624995379,1.6027,2169.2,2168.6,0.92230753]
[1750624995584,1.6027,2169.2,2168.7,0.0569]
[1750624996807,1.6027,2169.2,2168.6,15.5335331]
[1750624996808,1.6027,2169.2,2168.6,15.5904331]
[1750624997014,1.6027,2169.2,2168.8,0.0569]
[1750624997221,1.6027,2169.2,2168.9,4.6104423]
[1750624997518,1.6399,2169.5,2169.0,0.52363423]
[1750624997726,1.6399,2169.5,2169.2,4.60987018]
[1750624997876,1.6399,2169.8,2169.3,0.0569]
[1750624998288,1.6399,2169.8,2169.4,10.0]
[1750624998488,1.6399,2169.8,2169.4,11.46666792]
[1750624998926,1.6399,2169.8,2169.4,1.46666792]
[1750624999126,1.6399,2169.8,2169.2,4.66680338]
[1750624999425,0.0586,2169.7,2169.0,0.46673423]
[1750624999739,0.0586,2169.7,2168.1,1.385877]
[1750624999740,1.6399,2169.2,2168.3,0.0569]
[1750625000032,1.6399,2169.5,2168.5,0.0569]
[1750625000236,1.6399,2169.5,2168.6,10.0]
[1750625000439,1.6399,2169.5,2168.6,14.61124553]
[1750625000646,1.6399,2169.5,2168.8,14.66765792]
[1750625001341,1.6399,2169.5,2169.0,10.0]
[1750625001636,1.6399,2169.5,2169.2,0.0569]
[1750625002207,1.5226,2170.0,2169.3,0.0569]
[1750625002913,1.5226,2170.0,2169.1,9.8550433]
[1750625003108,1.5226,2169.7,2169.0,8.394]
[1750625003739,0.55,2169.6,2168.9,8.393]
[1750625004057,1.5226,2169.5,2169.0,0.10300231]
[1750625004221,1.5226,2169.5,2169.0,11.41597001]
[1750625004411,1.5226,2169.5,2169.2,0.0569]
[1750625004606,1.5226,2169.5,2169.2,0.10299421]
[1750625004812,1.5226,2169.5,2168.8,10.0569]
[1750625005009,0.55,2169.4,2168.5,3.28480146]
[1750625005209,1.5569,2169.3,2168.6,0.04610892]
[1750625005412,1.5569,2169.6,2168.9,4.66739809]
[1750625005638,1.5569,2169.6,2169.0,8.43809478]
[1750625005944,1.5569,2169.6,2169.0,8.392]
[1750625007637,1.5569,2169.6,2169.1,0.0569]
[1750625007830,1.5569,2169.6,2169.1,27.33208779]
[1750625008028,11.3018773,2170.5,2169.3,10.0]
[1750625008029,1.5097,2170.1,2169.3,10.0]
[1750625008215,1.5097,2170.1,2169.5,4.66613044]
[1750625008835,1.5097,2170.1,2169.5,0.0569]
[1750625009148,1.5097,2170.1,2169.4,8.389]
[1750625009453,1.5097,2170.1,2169.4,10.23359]
[1750625009621,1.5097,2170.1,2169.4,14.84309761]
[1750625009943,1.5097,2170.1,2169.4,10.23359]
[1750625010240,1.5097,2170.1,2169.4,10.23259]
[1750625010741,1.5097,2170.1,2169.4,1.84459]
[1750625010943,1.5097,2170.1,2169.5,0.04608738]
[1750625011155,1.5097,2170.1,2169.5,4.65536965]
[1750625011463,1.5928,2170.4,2170.0,0.0569]
[1750625011612,1.5928,2170.4,2170.0,0.1029734]
[1750625011917,1.5928,2170.4,2170.0,2.0689942]
[1750625012117,1.6514,2170.4,2169.7,10.0]
[1750625012351,1.5928,2170.4,2170.0,4.60815134]
[1750625012642,0.2278773,2170.5,2170.0,10.0]
[1750625012850,0.2864773,2170.5,2169.7,10.0]
[1750625013051,1.5928,2170.1,2169.5,0.45896116]
[1750625013217,1.5928,2170.0,2169.5,0.45974571]
[1750625013551,0.0586,2169.9,2169.1,1.3059442]
[1750625013864,1.5928,2169.8,2168.8,19.8117677]
[1750625014206,3.119,2170.1,2168.6,8.383]
[1750625014207,1.6514,2169.6,2168.6,8.383]
[1750625014420,1.6514,2169.6,2168.7,10.0]
[1750625014870,1.6514,2169.6,2168.6,8.383]
[1750625014871,1.5928,2169.6,2169.0,1.5801]
[1750625015153,11.074,2170.3,2169.2,11.3698677]